bitfinex/quotes_SOLUSD_20251202
["timestamp","ask_amount","ask_price","bid_price","bid_amount"]
[1764689501602,12.85349053,135.89,135.84,25.76560659]
[1764689501924,12.1149381,135.88,135.84,25.76560659]
[1764689502216,0.73855243,135.89,135.84,26.45560659]
[1764689502424,0.65,135.88,135.84,7.36160188]
[1764689502623,0.73855243,135.87,135.84,7.36160188]
[1764689502937,0.73855243,135.89,135.85,0.69]
[1764689503094,12.85349053,135.89,135.85,0.69]
[1764689503490,0.73855243,135.89,135.85,0.69]
[1764689503789,12.85349053,135.92,135.86,25.76181363]
[1764689503989,12.1149381,135.93,135.86,25.76181363]
[1764689504213,8.5,135.94,135.88,12.1149381]
[1764689504413,20.6149381,135.97,135.9,12.1149381]
[1764689504714,12.85349053,135.96,135.9,12.1149381]
[1764689504923,0.73855243,135.96,135.91,12.8049381]
[1764689505102,8.5,136.0,135.92,12.1149381]
[1764689505296,12.1149381,135.97,135.93,0.69]
[1764689505495,12.85349053,135.96,135.91,0.69]
[1764689505721,0.65,135.99,135.92,0.69]
[1764689505899,12.85349053,135.98,135.92,12.8049381]
[1764689506098,12.85349053,135.98,135.92,0.69]
[1764689506300,12.1149381,135.97,135.9,63.23598968]
[1764689506519,12.1149381,135.97,135.91,0.69]
[1764689506702,12.1149381,135.98,135.92,12.1149381]
[1764689507016,8.5,136.0,135.93,12.1149381]
[1764689507315,12.1149381,136.03,135.96,12.1149381]
[1764689507521,0.73855243,136.02,135.96,12.1149381]
[1764689507699,12.1149381,136.0,135.96,8.04501294]
[1764689508017,12.1149381,136.01,135.96,25.74277404]
[1764689508204,8.5,136.04,135.97,0.69]
[1764689508410,12.1149381,136.01,135.97,0.69]
[1764689508598,12.1149381,136.02,135.97,0.69]
[1764689508793,1.38855243,136.03,135.97,12.8049381]
[1764689509004,13.50349053,136.03,135.97,0.69]
[1764689509201,13.50349053,136.03,135.98,0.69]
[1764689509202,0.73855243,136.03,135.98,0.69]
[1764689509402,12.85349053,136.03,135.98,0.69]
[1764689509820,12.85349053,136.03,135.99,25.73718655]
[1764689510022,12.1149381,136.0,135.96,7.35510444]
[1764689510210,12.1149381,135.98,135.96,7.35510444]
[1764689510926,1.38855243,135.97,135.9,0.69]
[1764689511216,12.85349053,135.97,135.91,12.1149381]
[1764689511430,0.73855243,135.97,135.91,12.8049381]
[1764689511717,0.73855243,135.97,135.78,36.4406209]
[1764689511718,7.35781031,135.91,135.81,7.36315796]
[1764689512028,12.1149381,135.86,135.81,26.46122805]
[1764689512232,12.1149381,135.88,135.82,0.69]
[1764689512432,0.73855243,135.91,135.83,12.1149381]
[1764689512632,8.54,135.9,135.84,0.69]
[1764689512823,12.1149381,135.91,135.84,12.8049381]
[1764689513021,12.1149381,135.85,135.8,8.05375646]
[1764689513325,12.1149381,135.84,135.8,8.05375646]
[1764689513524,0.65,135.89,135.8,8.05375646]
[1764689513734,12.1149381,135.85,135.8,8.05375646]
[1764689513942,12.1149381,135.85,135.8,26.46318208]
[1764689514239,12.1149381,135.84,135.81,0.69]
[1764689514433,12.1149381,135.84,135.8,25.77318208]
[1764689514812,12.1149381,135.84,135.8,26.46318208]
[1764689515013,12.1149381,135.83,135.8,8.05375646]
[1764689515420,12.1149381,135.84,135.8,8.05375646]
[1764689515622,12.1149381,135.83,135.8,8.05375646]
[1764689516017,12.1149381,135.84,135.8,0.69]
[1764689516223,9.19,135.85,135.8,8.05353523]
[1764689516542,12.1149381,135.84,135.8,8.05353523]
[1764689517043,8.54,135.85,135.8,8.05353523]
[1764689517543,0.65,135.87,135.8,25.77296085]
[1764689517735,12.1149381,135.87,135.8,37.88789895]
[1764689518041,12.1149381,135.87,135.81,12.8049381]
[1764689518236,12.1149381,135.87,135.82,25.76940066]
[1764689518543,12.7649381,135.88,135.82,25.76940066]
[1764689518841,20.6549381,135.89,135.83,0.69]
[1764689519439,8.54,135.89,135.83,12.8049381]
[1764689520026,20.6549381,135.89,135.83,12.1149381]
[1764689520225,12.1149381,135.9,135.85,7.36105999]
[1764689520544,0.73855243,135.89,135.85,25.76370997]
[1764689520725,0.73855243,135.89,135.85,37.87864807]
[1764689520926,0.73855243,135.89,135.85,25.76370997]
[1764689521127,0.73855243,135.89,135.85,26.45370997]
[1764689521345,8.52,135.9,135.86,0.69]
[1764689521645,8.52,135.9,135.85,26.45370997]
[1764689521842,8.52,135.9,135.86,0.69]
[1764689522234,8.52,135.9,135.87,25.75991756]
[1764689522552,18.38878417,135.96,135.87,25.75991756]
[1764689522553,12.1149381,135.92,135.87,25.75991756]
[1764689522723,0.73855243,135.91,135.87,25.75991756]
[1764689523050,0.73855243,135.91,135.88,0.69]
[1764689523467,8.52,135.92,135.88,0.69]
[1764689523643,12.1149381,135.9,135.87,7.35997644]
[1764689523937,0.73855243,135.89,135.87,7.35997644]
[1764689524728,0.73855243,135.89,135.86,18.40020365]
[1764689524948,0.73855243,135.89,135.86,19.09020365]
[1764689525247,8.52,135.9,135.87,0.69]
[1764689525455,0.73855243,135.91,135.87,12.8049381]
[1764689525751,9.25855243,135.93,135.88,0.69]
[1764689526048,8.52,135.93,135.88,0.69]
[1764689526225,8.52,135.93,135.88,12.8049381]
[1764689526431,0.65,135.92,135.86,0.69]
[1764689526744,13.50349053,135.92,135.87,7.35997644]
[1764689526949,12.1149381,135.91,135.87,7.35997644]
[1764689527151,0.73855243,135.9,135.87,25.75991756]
[1764689527353,8.52,135.91,135.88,0.69]
[1764689527543,9.25855243,135.92,135.88,0.69]
[1764689528354,8.52,135.92,135.88,12.8049381]
[1764689528532,8.52,135.92,135.88,0.69]
[1764689528733,8.52,135.92,135.89,0.69]
[1764689529147,8.5,135.94,135.9,7.35835172]
[1764689529364,8.5,135.94,135.9,8.04835172]
[1764689529533,0.73855243,136.01,135.93,12.1149381]
[1764689529735,12.1149381,135.98,135.91,0.69]
[1764689530052,12.1149381,135.99,135.92,12.1149381]
[1764689530245,0.73855243,135.98,135.92,12.1149381]
[1764689530548,12.1149381,135.97,135.92,0.69]
[1764689530849,0.73855243,135.96,135.92,0.69]
[1764689531056,0.73855243,135.97,135.92,12.8049381]
[1764689531228,0.73855243,135.97,135.93,37.86348513]
[1764689531429,0.73855243,135.97,135.93,38.55348513]
[1764689531740,8.5,135.98,135.94,12.7949381]
[1764689531942,0.73855243,135.97,135.94,0.68]
[1764689532248,13.57349053,135.97,135.93,7.35672772]
[1764689533346,12.1149381,135.96,135.92,7.35726898]
[1764689533549,0.73855243,135.95,135.92,7.35726898]
[1764689533749,1.45855243,135.95,135.92,7.35726898]
[1764689534130,8.5,135.94,135.92,7.35726898]
[1764689534951,0.73855243,135.93,135.92,7.35726898]
[1764689535149,8.5,135.94,135.92,7.35726898]
[1764689535453,9.23855243,135.94,135.9,7.35835172]
[1764689535656,9.23855243,135.94,135.9,26.43423104]
[1764689536356,9.23855243,135.94,135.9,7.35835172]
[1764689536357,22.07349053,135.94,135.9,7.35835172]
[1764689536654,21.35349053,135.94,135.9,8.03835172]
[1764689536848,21.35349053,135.94,135.9,26.43423104]
[1764689537155,8.5,135.94,135.92,12.1149381]
[1764689537343,8.5,135.94,135.92,7.35726898]
[1764689537841,8.5,135.94,135.93,0.68]
[1764689538054,0.2,136.02,135.92,74.65172443]
[1764689538353,12.1149381,135.96,135.92,25.75044143]
[1764689538529,9.21855243,135.95,135.92,25.75044143]
[1764689538935,0.72,136.01,135.93,0.68]
[1764689539138,12.1149381,135.97,135.92,25.75044143]
[1764689539334,9.21855243,135.96,135.92,37.86537953]
[1764689539534,0.72,136.01,135.95,12.1149381]
[1764689539833,9.21855243,136.0,135.95,12.1149381]
[1764689540029,8.48,136.0,135.96,12.7949381]
[1764689540246,0.93855243,136.02,135.96,12.7949381]
[1764689540429,0.93855243,136.02,135.98,12.1149381]
[1764689540430,0.2,136.02,135.98,12.1149381]
[1764689540635,0.2,136.02,135.99,12.7949381]
[1764689540930,8.48,136.06,136.01,12.1149381]
[1764689541135,0.93855243,136.08,136.03,12.1149381]
[1764689541434,0.2,136.08,136.05,25.72583608]
[1764689542152,0.2,136.08,136.06,12.7949381]
[1764689542343,1e-08,136.08,136.07,12.7949381]
[1764689542877,0.2,136.11,136.08,0.68]
[1764689543032,0.2,136.11,136.1,12.1149381]
[1764689543033,1e-08,136.11,136.1,12.1149381]
[1764689543236,1e-08,136.11,136.08,0.68]
[1764689543476,1e-08,136.11,136.08,12.7949381]
[1764689543628,1e-08,136.11,136.09,7.34807847]
[1764689543829,1e-08,136.11,136.05,12.7949381]
[1764689544054,12.85349054,136.11,136.05,12.7949381]
[1764689544256,1.45855244,136.11,136.03,12.7949381]
[1764689544461,12.1149381,136.08,136.03,0.68]
[1764689544831,0.73855244,136.11,136.0,0.68]
[1764689544832,12.1149381,136.06,136.0,0.68]
[1764689545032,0.73855243,136.05,135.99,25.73718655]
[1764689545232,12.1149381,136.04,135.99,26.41718655]
[1764689545539,12.85349053,136.03,135.99,26.41718655]
[1764689545742,12.1149381,136.02,135.99,7.35348187]
[1764689545940,0.73855243,136.01,135.98,7.35396525]
[1764689546142,0.73855243,136.04,135.98,7.35396525]
[1764689546350,12.1149381,136.03,135.98,7.35396525]
[1764689546554,12.1149381,136.01,135.97,7.35446028]
[1764689546970,12.1149381,136.02,135.97,8.03446028]
[1764689547270,12.1149381,136.0,135.97,25.74086904]
[1764689547435,0.73855243,135.99,135.97,7.35446028]
[1764689547632,0.73855243,135.99,135.94,12.1149381]
[1764689547633,1.45855243,135.99,135.94,7.35618655]
[1764689547873,13.57349053,135.99,135.94,7.35618655]
[1764689548165,13.57349053,135.99,135.94,25.74665293]
[1764689548364,0.73855243,135.99,135.94,26.42665293]
[1764689548669,12.1149381,135.98,135.94,7.35618655]
[1764689548960,12.1149381,135.97,135.91,8.03739421]
[1764689549160,8.48,135.96,135.91,20.15233231]
[1764689549371,12.1149381,136.0,135.94,12.1149381]
[1764689549553,8.48,136.0,135.95,12.1149381]
[1764689549754,8.48,136.0,135.96,19.47004254]
[1764689549961,8.48,136.0,135.96,7.35510444]
[1764689550167,8.48,136.0,135.97,0.68]
[1764689550489,0.73855243,136.02,135.97,8.61585945]
[1764689550777,9.21855243,136.03,135.98,7.93585945]
[1764689550979,9.21855243,136.03,135.97,0.68]
[1764689551543,7.93585945,136.01,135.96,25.74286554]
[1764689551772,7.93585945,135.98,135.91,0.68]
[1764689551970,16.41585945,135.98,135.91,0.68]
[1764689552164,16.41585945,135.98,135.92,7.93585945]
[1764689552366,8.48,135.98,135.92,7.93585945]
[1764689552650,8.48,135.98,135.92,8.61585945]
[1764689552850,16.41585945,135.98,135.92,8.61585945]
[1764689553168,8.48,135.98,135.92,8.61585945]
[1764689553362,8.48,135.98,135.94,7.93585945]
[1764689553673,8.48,135.98,135.93,0.71]
[1764689553674,8.48,135.98,135.93,8.64585945]
[1764689553869,8.48,135.98,135.94,7.35612615]
[1764689553870,9.17,135.98,135.94,7.35612615]
[1764689554370,7.93585945,135.99,135.94,7.35612615]
[1764689554570,16.41585945,135.99,135.94,8.06612615]
[1764689554778,17.10585945,135.99,135.94,26.45659253]
[1764689555073,8.48,135.99,135.95,0.71]
[1764689555574,0.69,136.01,135.94,33.68245198]
[1764689555761,8.48,136.0,135.96,25.74286554]
[1764689556160,0.69,136.0,135.96,25.74286554]
[1764689556358,9.17,136.0,135.96,25.74286554]
[1764689556558,7.93585945,135.99,135.96,7.35510444]
[1764689557248,16.41585945,135.99,135.96,7.35510444]
[1764689557465,17.84441188,135.99,135.96,7.35510444]
[1764689557682,7.93585945,135.98,135.94,25.74609218]
[1764689557878,8.62585945,135.98,135.94,7.35618655]
[1764689558073,7.93585945,135.95,135.89,0.71]
[1764689558264,7.93585945,135.98,135.92,7.93585945]
[1764689558456,7.93585945,135.98,135.89,0.71]
[1764689558457,8.48,135.97,135.93,7.93585945]
[1764689558866,8.48,135.97,135.94,0.71]
[1764689559177,7.93585945,135.95,135.86,0.71]
[1764689559376,0.69,135.96,135.86,8.64585945]
[1764689559566,0.69,135.96,135.86,0.71]
[1764689559875,8.48,135.95,135.91,25.75233609]
[1764689560054,7.93585945,135.96,135.91,25.75233609]
[1764689560250,7.93585945,135.96,135.91,26.46233609]
[1764689560463,8.48,135.98,135.93,7.93585945]
[1764689560890,8.62585945,136.0,135.94,8.64585945]
[1764689561172,7.93585945,135.98,135.94,0.71]
[1764689561374,8.48,136.0,135.95,8.64585945]
[1764689561555,8.48,136.0,135.96,7.93585945]
[1764689561754,8.48,136.0,135.97,33.67683171]
[1764689561972,0.65,136.04,135.99,7.93585945]
[1764689562178,0.73855243,136.04,136.0,8.64585945]
[1764689562375,0.65,136.07,136.0,8.64585945]
[1764689562376,16.41585945,136.06,136.0,8.64585945]
[1764689562577,0.65,136.07,136.02,7.93585945]
[1764689562759,0.73855243,136.07,136.02,7.93585945]
[1764689562955,0.73855243,136.07,136.02,8.64585945]
[1764689563173,0.73855243,136.07,136.03,8.64585945]
[1764689563361,0.73855243,136.07,135.98,8.48]
[1764689563362,8.67441188,136.07,135.99,0.71]
[1764689563561,8.58585945,136.06,136.0,7.93585945]
[1764689563862,0.65,136.06,136.0,33.67115356]
[1764689564062,0.65,136.06,136.0,34.38115356]
[1764689564279,8.67441188,136.05,136.0,25.73529411]
[1764689564654,9.32441188,136.05,136.0,25.73529411]
[1764689564855,7.93585945,136.03,135.97,7.93585945]
[1764689565073,0.73855243,136.03,135.97,8.64585945]
[1764689565269,0.73855243,136.03,135.97,0.71]
[1764689565477,0.73855243,136.03,135.97,8.64585945]
[1764689565670,8.67441188,136.03,135.97,7.93585945]
[1764689565878,9.13,136.02,135.95,8.64585945]
[1764689566062,9.13,136.02,135.95,16.00137278]
[1764689566063,8.67441188,136.01,135.95,16.00137278]
[1764689566257,7.93585945,136.0,135.95,26.45462697]
[1764689566466,0.65,136.01,135.95,34.39048642]
[1764689566765,7.93585945,135.99,135.92,7.93585945]
[1764689566971,8.67441188,135.98,135.92,8.64585945]
[1764689567292,8.67441188,135.98,135.92,0.71]
[1764689567463,8.67441188,135.98,135.88,8.48]
[1764689567464,7.93585945,135.96,135.9,8.64585945]
[1764689567975,0.65,135.97,135.91,15.29366976]
[1764689568180,0.65,136.0,135.94,7.93585945]
[1764689568384,8.48,135.99,135.94,7.93585945]
[1764689568566,0.73855243,135.98,135.94,7.93585945]
[1764689568884,8.48,136.01,135.96,7.93585945]
[1764689569077,0.73855243,136.0,135.95,0.71]
[1764689569278,7.93585945,135.99,135.93,8.64585945]
[1764689569490,8.48,136.01,135.96,7.93585945]
[1764689569690,0.73855243,136.01,135.96,7.93585945]
[1764689569863,1.38855243,136.01,135.97,25.74097226]
[1764689570483,9.32441188,136.01,135.97,25.74097226]
[1764689570889,17.80441188,136.01,135.97,25.74097226]
[1764689571063,9.86855243,136.01,135.97,25.74097226]
[1764689571268,9.86855243,136.01,135.97,7.3545635]
[1764689571584,0.65,136.04,135.97,33.67683171]
[1764689571785,8.48,136.05,136.01,7.35240055]
[1764689571985,8.67441188,136.04,136.01,7.35240055]
[1764689572171,0.73855243,136.04,136.01,7.35240055]
[1764689572372,1.38855243,136.04,136.01,7.35240055]
[1764689572888,9.32441188,136.04,136.01,7.35240055]
[1764689573782,15.93724097,136.03,135.95,8.06564545]
[1764689573969,8.67441188,136.02,135.96,0.71]
[1764689574176,1.38855243,136.02,135.96,8.64585945]
[1764689574496,1.38855243,136.02,135.97,7.93585945]
[1764689574675,8.58585945,136.01,135.95,25.74475909]
[1764689574880,17.15441188,136.0,135.95,7.35564545]
[1764689575098,7.93585945,135.99,135.93,8.64585945]
[1764689575298,7.93585945,135.99,135.93,16.00244756]
[1764689575509,8.58585945,135.99,135.93,16.00244756]
[1764689575682,0.65,135.99,135.94,7.93585945]
[1764689575882,0.65,135.99,135.95,7.35564545]
[1764689576089,8.58585945,135.99,135.95,7.35564545]
[1764689576396,7.93585945,135.97,135.93,7.35672772]
[1764689576801,7.93585945,135.96,135.91,0.71]
[1764689577102,9.13,135.96,135.91,33.68796883]
[1764689577303,8.48,135.96,135.91,34.39796883]
[1764689577887,9.13,135.96,135.91,34.39796883]
[1764689578087,23.77101793,135.96,135.91,25.75210938]
[1764689578292,9.13,135.96,135.91,34.39796883]
[1764689578671,17.06585945,135.96,135.91,26.46210938]
[1764689579393,0.65,135.99,135.93,7.93585945]
[1764689579569,0.65,135.99,135.91,25.75210938]
[1764689579570,7.93585945,135.97,135.91,25.75210938]
[1764689579776,7.93585945,135.96,135.91,25.75210938]
[1764689579971,7.93585945,135.96,135.91,33.68796883]
[1764689580166,8.67441188,135.97,135.92,0.71]
[1764689580386,7.93585945,135.93,135.9,7.35835172]
[1764689580695,7.93585945,135.91,135.83,0.71]
[1764689580876,7.93585945,135.86,135.82,0.2]
[1764689581199,7.93585945,135.87,135.82,8.84585945]
[1764689581494,8.48,135.88,135.82,26.67936933]
[1764689581671,8.48,135.88,135.83,0.71]
[1764689581876,8.48,135.88,135.86,7.93585945]
[1764689582074,7.93585945,135.95,135.88,25.75802177]
[1764689582394,8.48,135.94,135.84,25.76560659]
[1764689582605,7.93585945,135.91,135.84,26.47560659]
[1764689582805,8.48,135.94,135.88,7.93585945]
[1764689582806,0.65,135.93,135.88,7.93585945]
[1764689583270,0.65,135.93,135.88,8.64585945]
[1764689583472,8.58585945,135.93,135.87,7.93585945]
[1764689583679,7.93585945,135.93,135.88,7.93585945]
[1764689583890,7.93585945,135.93,135.88,8.64585945]
[1764689584084,16.41585945,135.94,135.89,7.35889322]
[1764689584294,7.93585945,135.93,135.89,7.35889322]
[1764689584499,8.58585945,135.93,135.89,7.35889322]
[1764689584699,8.48,135.92,135.89,7.35889322]
[1764689584903,7.93585945,135.9,135.84,0.71]
[1764689585105,9.13,135.92,135.84,8.64585945]
[1764689585106,0.65,135.91,135.84,8.64585945]
[1764689585275,7.93585945,135.89,135.84,8.64585945]
[1764689585601,0.65,135.88,135.83,33.70336294]
[1764689585820,7.93585945,135.9,135.85,7.93585945]
[1764689585980,7.93585945,135.9,135.83,25.76750349]
[1764689585981,7.93585945,135.9,135.84,7.93585945]
[1764689586180,8.58585945,135.9,135.85,7.36105999]
[1764689586381,7.93585945,135.89,135.85,7.36105999]
[1764689586599,8.58585945,135.89,135.85,7.36105999]
[1764689586796,8.58585945,135.89,135.82,0.2]
[1764689586797,7.93585945,135.86,135.84,7.36140587]
[1764689587007,1.38855243,135.93,135.85,7.93585945]
[1764689587305,16.41585945,135.92,135.87,7.93585945]
[1764689587690,9.13,135.92,135.87,8.64585945]
[1764689588012,8.48,135.92,135.88,8.64585945]
[1764689588178,8.48,135.92,135.88,7.93585945]
[1764689588508,7.93585945,135.9,135.85,7.93585945]
[1764689588806,8.48,135.93,135.88,7.93585945]
[1764689589100,0.73855243,135.92,135.87,7.93585945]
[1764689589298,7.93585945,135.89,135.83,26.47741323]
[1764689589508,7.93585945,135.89,135.84,8.64585945]
[1764689589689,7.93585945,135.9,135.85,7.93585945]
[1764689589894,7.93585945,135.9,135.85,8.64585945]
[1764689590193,8.58585945,135.9,135.86,25.76181363]
[1764689590382,7.93585945,135.9,135.86,25.76181363]
[1764689590572,9.32441188,135.92,135.87,0.71]
[1764689590778,1.38855243,135.92,135.87,0.71]
[1764689590978,8.48,135.91,135.87,0.71]
[1764689591179,8.67441188,135.9,135.86,7.36051818]
[1764689591380,7.93585945,135.87,135.82,0.2]
[1764689591774,7.93585945,135.88,135.83,25.76750349]
[1764689591978,7.93585945,135.89,135.83,33.70336294]
[1764689592179,7.93585945,135.89,135.83,34.41336294]
[1764689592397,7.93585945,135.88,135.83,26.47750349]
[1764689592579,7.93585945,135.89,135.84,8.64585945]
[1764689592779,7.93585945,135.9,135.84,8.64585945]
[1764689593109,7.93585945,135.92,135.86,7.93585945]
[1764689593283,9.21855243,135.91,135.86,7.93585945]
[1764689593479,8.48,135.91,135.83,25.76750349]
[1764689593706,8.67441188,135.9,135.84,8.64585945]
[1764689594109,9.21855243,135.9,135.85,8.64585945]
[1764689594312,17.15441188,135.9,135.86,7.36051818]
[1764689594481,9.21855243,135.9,135.86,16.00637763]
[1764689594808,0.73855243,135.9,135.86,26.47181363]
[1764689595208,0.73855243,135.9,135.86,8.07051818]
[1764689595413,0.73855243,135.9,135.87,0.71]
[1764689596110,8.48,135.91,135.87,0.71]
[1764689596411,9.21855243,135.91,135.88,7.35943479]
[1764689596985,9.88855243,135.91,135.88,7.35943479]
[1764689597202,0.73855243,135.9,135.88,7.35943479]
[1764689598202,7.93585945,135.89,135.85,18.4019259]
[1764689598398,0.73855243,135.88,135.85,19.1119259]
[1764689598607,8.67441188,135.9,135.85,18.4019259]
[1764689598909,0.67,135.92,135.86,0.71]
[1764689599111,8.60585945,135.9,135.85,19.1119259]
[1764689599286,0.73855243,135.89,135.85,19.1119259]
[1764689599485,8.67441188,135.89,135.85,19.1119259]
[1764689600302,7.93585945,135.91,135.86,0.71]
[1764689600498,0.73855243,135.9,135.87,25.75991756]
[1764689600697,0.73855243,135.91,135.87,25.75991756]
[1764689600899,0.73855243,135.91,135.87,26.46991756]
[1764689600900,17.15441188,135.91,135.87,26.46991756]
[1764689601396,9.21855243,135.91,135.87,26.46991756]
[1764689601904,17.15441188,135.91,135.87,26.46991756]
[1764689602322,17.82441188,135.91,135.87,25.75991756]
[1764689602722,17.82441188,135.91,135.87,18.39994112]
[1764689603099,7.93585945,135.89,135.86,7.36051818]
[1764689603415,8.67441188,135.88,135.85,7.36083038]
[1764689603590,8.67441188,135.88,135.84,7.36147245]
[1764689603591,7.93585945,135.87,135.84,7.36147245]
[1764689603988,8.48,135.86,135.84,7.36147245]
[1764689604211,8.48,135.86,135.83,7.36191153]
[1764689604413,8.48,135.86,135.82,7.56236814]
[1764689604414,7.93585945,135.85,135.82,7.56236814]
[1764689604590,7.93585945,135.85,135.82,0.2]
[1764689604992,7.93585945,135.85,135.82,7.56261108]
[1764689605191,16.41585945,135.86,135.82,0.2]
[1764689605388,8.48,135.85,135.82,8.2726118]
[1764689605607,8.48,135.85,135.82,25.96932656]
[1764689606050,7.93585945,135.84,135.82,0.2]
[1764689606306,8.48,135.85,135.82,0.2]
[1764689606504,16.41585945,135.85,135.82,0.2]
[1764689607023,7.93585945,135.83,135.82,0.2]
[1764689607316,7.93585945,135.83,135.77,0.2]
[1764689607517,7.93585945,135.78,135.77,0.2]
[1764689607817,16.41585945,135.78,135.77,0.2]
[1764689607995,17.08585945,135.78,135.77,0.2]
[1764689608313,8.48,135.79,135.77,0.2]
[1764689608524,8.48,135.79,135.77,7.56508283]
[1764689608813,8.48,135.79,135.77,0.2]
[1764689609030,8.60585945,135.78,135.77,0.2]
[1764689609391,8.60585945,135.78,135.77,0.06]
[1764689609587,8.60585945,135.78,135.71,7.12828146]
[1764689609817,8.89271378,135.84,135.72,0.71]
[1764689610021,7.93585945,135.79,135.72,0.71]
[1764689610220,8.48,135.78,135.72,8.64585945]
[1764689610421,20.58152504,135.78,135.72,12.81152504]
[1764689610627,20.58152504,135.78,135.66,25.7997936]
[1764689610628,12.10152504,135.74,135.7,0.71]
[1764689610805,0.57,135.8,135.66,26.5097936]
[1764689610806,12.10152504,135.71,135.66,26.5097936]
[1764689611123,12.10152504,135.7,135.66,26.5097936]
[1764689611293,8.48,135.71,135.66,7.3713696]
[1764689611493,16.41896536,135.71,135.65,7.37179919]
[1764689611698,12.10152504,135.69,135.63,20.1841344]
[1764689612015,12.10152504,135.69,135.63,38.61663458]
[1764689612217,12.10152504,135.67,135.62,0.1]
[1764689612397,12.10152504,135.66,135.62,7.47351712]
[1764689612600,20.58152504,135.66,135.62,7.47351712]
[1764689612801,8.48,135.66,135.63,0.67]
[1764689613515,8.48,135.68,135.63,12.77152504]
[1764689613832,12.10152504,135.66,135.62,25.90737643]
[1764689613998,12.10152504,135.66,135.62,26.57737643]
[1764689614399,8.48,135.68,135.62,7.47351712]
[1764689614400,12.10152504,135.65,135.62,7.47351712]
[1764689614835,12.10152504,135.66,135.62,0.77]
[1764689615003,12.10152504,135.65,135.62,0.77]
[1764689615337,12.10152504,135.64,135.62,0.1]
[1764689615698,20.58152504,135.63,135.62,0.1]
[1764689615902,12.10152504,135.63,135.62,0.1]
[1764689616224,12.10152504,135.64,135.62,0.1]
[1764689616398,12.10152504,135.63,135.62,0.1]
[1764689616798,0.57,135.66,135.62,0.1]
[1764689617017,12.10152504,135.64,135.62,0.1]
[1764689617215,15.85089606,135.67,135.62,0.1]
[1764689617431,0.57,135.72,135.62,0.77]
[1764689617629,12.10152504,135.64,135.62,0.1]
[1764689617815,8.48,135.63,135.62,0.1]
[1764689618314,8.48,135.67,135.62,12.87152504]
[1764689618623,8.48,135.67,135.63,12.10152504]
[1764689618816,8.48,135.67,135.64,25.80359775]
[1764689619015,8.48,135.67,135.64,26.47359775]
[1764689619229,8.48,135.67,135.64,0.67]
[1764689619424,8.48,135.67,135.65,0.67]
[1764689619836,12.10152504,135.66,135.62,0.1]
[1764689620007,8.48,135.67,135.62,0.1]
[1764689620008,12.10152504,135.65,135.62,0.1]
[1764689620411,12.10152504,135.63,135.62,0.1]
[1764689621046,0.57,135.66,135.62,0.1]
[1764689621224,12.10152504,135.63,135.62,0.1]
[1764689621619,12.10152504,135.64,135.62,0.1]
[1764689622019,0.57,135.66,135.62,0.1]
[1764689622020,12.10152504,135.63,135.62,0.1]
[1764689622222,8.48,135.63,135.62,0.1]
[1764689622423,20.58152504,135.63,135.62,0.1]
[1764689622824,8.48,135.63,135.62,0.1]
[1764689624417,0.73855243,135.64,135.62,0.1]
[1764689624616,9.21855243,135.64,135.62,0.78]
[1764689625016,9.21855243,135.64,135.63,7.37300007]
[1764689625412,9.21855243,135.64,135.62,0.1]
[1764689625641,9.78855243,135.64,135.62,0.1]
[1764689625813,8.48,135.63,135.62,0.1]
[1764689626225,8.48,135.63,135.62,7.47354372]
[1764689626632,8.48,135.63,135.62,0.1]
[1764689626836,8.48,135.63,135.62,7.47354372]
[1764689627039,8.48,135.63,135.62,0.1]
[1764689628448,20.58152504,135.63,135.62,0.1]
[1764689628743,8.48,135.63,135.62,0.1]
[1764689628924,8.48,135.65,135.62,0.1]
[1764689629242,12.10152504,135.63,135.62,0.1]
[1764689629617,21.32007747,135.64,135.62,0.1]
[1764689630038,9.21855243,135.64,135.62,0.1]
[1764689630250,9.21855243,135.64,135.62,0.78]
[1764689631045,21.32007747,135.64,135.62,0.1]
[1764689631229,21.32007747,135.64,135.62,0.78]
[1764689631230,9.21855243,135.64,135.62,0.78]
[1764689631548,9.21855243,135.64,135.62,8.15351312]
[1764689631858,9.21855243,135.64,135.62,7.47351312]
[1764689632025,12.67152504,135.63,135.62,0.1]